[Event "FIDE WCCC Open-08 2024"]
[Site "Montesilvano"]
[Date "2024.11.20"]
[Round "6.5"]
[White "Protopopescu, Luca"]
[Black "Morozov, Arkhip"]
[Result "1-0"]
[ECO "B50"]
[WhiteElo "1818"]
[BlackElo "1687"]
[Annotator "NA RC"]
[PlyCount "157"]
[EventDate "2024.11.18"]
[EventType "swiss"]
[EventCountry "ITA"]
[SourceTitle "playchess.com"]
[Source "ChessBase"]
[SourceQuality "1"]
[TimeControl "5400+30"]

1. e4 {[%emt 0:00:03]} c5 {[%emt 0:00:09]} 2. Nf3 {[%emt 0:00:39]} Nc6 {[%emt 0:00:24]} 3. Be2 {[%emt 0:00:53]} d6 {[%emt 0:01:59]} 4. O-O {[%emt 0:00:47]} g6 {[%emt 0:01:30]} 5. d3 {[%emt 0:01:17]} Bg7 {[%emt 0:00:14]} 6. c3 {[%emt 0:00:38]} Nf6 {[%emt 0:02:26]} 7. Be3 {[%emt 0:01:42]} O-O {[%emt 0:00:56]} 8. Na3 {[%emt 0:00:34]} Rb8 {[%emt 0:03:12]} 9. Qd2 {[%emt 0:01:03]} Ng4 {[%emt 0:00:49]} 10. Bg5 {[%emt 0:01:06]} b5 {[%emt 0:16:00]} 11. h3 {[%emt 0:01:39]} Nf6 {[%emt 0:04:49]} 12. Bh6 {[%emt 0:00:52]} e6 {[%emt 0:01:55]} 13. Nc2 {[%emt 0:01:04]} Re8 {[%emt 0:02:16]} 14. Bxg7 {[%emt 0:00:52]} Kxg7 {[%emt 0:00:10]} 15. a4 {[%emt 0:01:05]} a6 {[%emt 0:03:41]} 16. axb5 {[%emt 0:01:40]} axb5 {[%emt 0:00:26]} 17. Qe3 {[%emt 0:02:21]} b4 {[%emt 0:06:53]} 18. Rfb1 {[%emt 0:03:38]} bxc3 {[%emt 0:02:58]} 19. bxc3 {[%emt 0:00:14]} Rxb1+ {[%emt 0:00:57]} 20. Rxb1 {[%emt 0:00:37]} Qa5 {[%emt 0:00:19]} 21. Qd2 {[%emt 0:04:31]} Re7 {[%emt 0:03:52]} 22. Ne3 {[%emt 0:07:53]} Rb7 {[%emt 0:01:06]} 23. Rxb7 {[%emt 0:02:55]} Bxb7 {[%emt 0:01:14]} 24. Nc4 {[%emt 0:01:59]} Qc7 {[%emt 0:01:58]} 25. Qf4 {[%emt 0:01:18]} e5 {[%emt 0:00:46]} 26. Qg5 {[%emt 0:01:04]} h6 {[%emt 0:03:46]} 27. Qh4 {[%emt 0:03:28]} Nd8 {[%emt 0:00:37]} 28. Nh2 {[%emt 0:00:34]} Ne6 {[%emt 0:00:57]} 29. Ng4 {[%emt 0:01:10]} Nxg4 {[%emt 0:00:19]} 30. Qxg4 {[%emt 0:04:08]} Bc8 {[%emt 0:01:38]} 31. Bf1 {[%emt 0:04:14]} Ba6 {[%emt 0:04:05]} 32. Ne3 {[%emt 0:01:39]} Qd8 {[%emt 0:01:21]} 33. g3 {[%emt 0:04:34]} Bc8 {[%emt 0:02:25]} 34. Qd1 {[%emt 0:01:42]} Qa5 {[%emt 0:01:34]} 35. Qb3 {[%emt 0:03:10]} Ba6 {[%emt 0:02:09]} 36. Qb8 {[%emt 0:01:34]} Qd8 {[%emt 0:01:41]} 37. Qa7 {[%emt 0:02:09]} Bb5 {[%emt 0:03:02]} 38. Qb7 {[%emt 0:04:54]} Be8 {[%emt 0:04:28]} 39. Nc4 {[%emt 0:04:32]} Kf8 {[%emt 0:01:16]} 40. h4 {[%emt 0:00:50]} Nc7 {[%emt 0:00:41]} 41. Qb6 {[%emt 0:01:48]} Ke7 {[%emt 0:00:25]} 42. d4 {[%emt 0:00:57]} cxd4 {[%emt 0:01:34]} 43. cxd4 {[%emt 0:00:54]} f6 {[%emt 0:01:42]} 44. dxe5 {[%emt 0:00:46]} dxe5 {[%emt 0:01:13]} 45. Qc5+ {[%emt 0:00:12]} Kf7 {[%emt 0:00:56]} 46. Nd6+ {[%emt 0:00:11]} Kf8 {[%emt 0:03:27]} 47. Nb5+ {[%emt 0:00:31]} Qe7 {[%emt 0:00:50]} 48. Qxe7+ {[%emt 0:01:05]} Kxe7 {[%emt 0:00:08]} 49. Nxc7 {[%emt 0:00:09]} Bc6 {[%emt 0:00:46]} 50. Nd5+ {[%emt 0:00:56]} Ke6 {[%emt 0:00:18]} 51. Bc4 {[%emt 0:00:16]} Be8 {[%emt 0:00:35]} 52. Nc7+ {[%emt 0:01:01]} Ke7 {[%emt 0:00:10]} 53. Nxe8 {[%emt 0:00:08]} Kxe8 {[%emt 0:00:06]} 54. h5 {[%emt 0:00:14]} gxh5 {[%emt 0:00:08]} 55. Be2 {[%emt 0:00:07]} h4 {[%emt 0:00:08]} 56. gxh4 {[%emt 0:00:05]} Kf7 {[%emt 0:00:12]} 57. Bg4 {[%emt 0:00:22]} Kg6 {[%emt 0:00:30]} 58. Kf1 {[%emt 0:00:09]} Kf7 {[%emt 0:00:13]} 59. Ke2 {[%emt 0:00:07]} Ke7 {[%emt 0:00:13]} 60. Bf5 {[%emt 0:00:10]} Kd6 {[%emt 0:00:27]} 61. Kf3 {[%emt 0:00:17]} Ke7 {[%emt 0:00:14]} 62. Kg4 {[%emt 0:00:04]} Kf7 {[%emt 0:00:11]} 63. Kh5 {[%emt 0:00:06]} Kg7 {[%emt 0:00:11]} 64. f3 {[%emt 0:00:04]} Kf7 {[%emt 0:00:08]} 65. Kxh6 {[%emt 0:00:07]} Kf8 {[%emt 0:00:14]} 66. Kg6 {[%emt 0:00:05]} Kg8 {[%emt 0:00:21]} 67. Kxf6 {[%emt 0:00:08]} Kh8 {[%emt 0:00:19]} 68. Kxe5 {[%emt 0:00:07]} Kg7 {[%emt 0:00:08]} 69. Kd6 {[%emt 0:00:05]} Kf6 {[%emt 0:00:10]} 70. e5+ {[%emt 0:00:05]} Kxf5 {[%emt 0:00:08]} 71. e6 {[%emt 0:00:04]} Kf4 {[%emt 0:01:24]} 72. e7 {[%emt 0:00:06]} Kxf3 {[%emt 0:00:07]} 73. e8=Q {[%emt 0:00:09]} Kg4 {[%emt 0:00:08]} 74. h5 {[%emt 0:00:06]} Kf4 {[%emt 0:00:10]} 75. h6 {[%emt 0:00:06]} Kf3 {[%emt 0:00:09]} 76. h7 {[%emt 0:00:05]} Kf4 {[%emt 0:00:21]} 77. h8=Q {[%emt 0:00:06]} Kf3 {[%emt 0:00:15]} 78. Qh3+ {[%emt 0:00:07]} Kf2 {[%emt 0:00:20]} 79. Qee3# {[%emt 0:00:06]} 1-0

[Event "FIDE WCCC Open-08 2024"]
[Site "Montesilvano"]
[Date "2024.11.20"]
[Round "6.6"]
[White "Kavish Palaniappan K"]
[Black "Divith Reddy Adulla"]
[Result "1-0"]
[ECO "B28"]
[WhiteElo "1589"]
[BlackElo "1784"]
[Annotator "NA RC"]
[PlyCount "71"]
[EventDate "2024.11.18"]
[EventType "swiss"]
[EventCountry "ITA"]
[SourceTitle "playchess.com"]
[Source "ChessBase"]
[SourceQuality "1"]
[TimeControl "5400+30"]

1. e4 {[%emt 0:00:02]} c5 {[%emt 0:00:02]} 2. Nf3 {[%emt 0:00:18]} a6 {[%emt 0:00:03]} 3. d4 {[%emt 0:00:22]} cxd4 {[%emt 0:00:06]} 4. Nxd4 {[%emt 0:00:24]} Nf6 {[%emt 0:00:03]} 5. Nc3 {[%emt 0:01:04]} e5 {[%emt 0:00:04]} 6. Nf3 {[%emt 0:05:07]} Bb4 {[%emt 0:01:12]} 7. Be2 {[%emt 0:10:18]} Nxe4 {[%emt 0:01:30]} 8. O-O {[%emt 0:06:59]} Bxc3 {[%emt 0:03:04]} 9. bxc3 {[%emt 0:00:30]} Nxc3 {[%emt 0:00:42]} 10. Qe1 {[%emt 0:03:02]} Nxe2+ {[%emt 0:00:35]} 11. Qxe2 {[%emt 0:00:06]} O-O {[%emt 0:00:12]} 12. Qxe5 {[%emt 0:02:13]} Nc6 {[%emt 0:01:27]} 13. Qd6 {[%emt 0:02:06]} Re8 {[%emt 0:00:10]} 14. Bf4 {[%emt 0:05:30]} Re6 {[%emt 0:00:51]} 15. Qd5 {[%emt 0:02:21]} Qf6 {[%emt 0:01:11]} 16. Bg3 {[%emt 0:00:42]} Ne7 {[%emt 0:02:06]} 17. Qd3 {[%emt 0:01:49]} Nf5 {[%emt 0:01:27]} 18. Be5 {[%emt 0:03:16]} Qg6 {[%emt 0:00:22]} 19. Rae1 {[%emt 0:01:19]} b5 {[%emt 0:01:07]} 20. Qd5 {[%emt 0:01:13]} Rc6 {[%emt 0:06:01]} 21. Bb8 {[%emt 0:02:54]} h6 {[%emt 0:00:51]} 22. Re8+ {[%emt 0:00:20]} Kh7 {[%emt 0:00:06]} 23. Ne5 {[%emt 0:01:32]} Qg5 {[%emt 0:01:25]} 24. Rh8+ {[%emt 0:00:24]} Kxh8 {[%emt 0:00:09]} 25. Nxf7+ {[%emt 0:00:04]} Kh7 {[%emt 0:00:14]} 26. Nxg5+ {[%emt 0:00:08]} Kg6 {[%emt 0:00:07]} 27. Nf3 {[%emt 0:00:23]} Rxb8 {[%emt 0:00:14]} 28. Ne5+ {[%emt 0:00:06]} Kh5 {[%emt 0:00:04]} 29. Nxc6 {[%emt 0:01:31]} dxc6 {[%emt 0:00:06]} 30. Qe5 {[%emt 0:00:07]} Ra8 {[%emt 0:00:06]} 31. Rd1 {[%emt 0:00:48]} Kh4 {[%emt 0:00:17]} 32. Qf4+ {[%emt 0:00:12]} Kh5 {[%emt 0:00:04]} 33. g4+ {[%emt 0:00:04]} Kg6 {[%emt 0:00:05]} 34. gxf5+ {[%emt 0:00:04]} Kh5 {[%emt 0:00:04]} 35. Rd3 {[%emt 0:00:19]} Bb7 {[%emt 0:00:05]} 36. Rh3# {[%emt 0:00:04]} 1-0

[Event "FIDE WCCC Open-08 2024"]
[Site "Montesilvano"]
[Date "2024.11.20"]
[Round "6.7"]
[White "Ulan, Rizat"]
[Black "Zhu, Daniel"]
[Result "1-0"]
[ECO "B50"]
[WhiteElo "1783"]
[BlackElo "2050"]
[Annotator "RC"]
[PlyCount "117"]
[EventDate "2024.11.18"]
[EventType "swiss"]
[EventCountry "ITA"]
[SourceTitle "playchess.com"]
[Source "ChessBase"]
[SourceQuality "1"]
[TimeControl "5400+30"]

1. e4 {[%emt 0:00:05]} c5 {[%emt 0:00:07]} 2. Nf3 {[%emt 0:00:14]} d6 {[%emt 0:01:05]} 3. c3 {[%emt 0:00:12]} Nf6 {[%emt 0:01:20]} 4. Be2 {[%emt 0:00:11]} Bd7 {[%emt 0:02:06]} 5. Qc2 {[%emt 0:00:21]} Nc6 {[%emt 0:00:26]} 6. d4 {[%emt 0:06:39]} cxd4 {[%emt 0:01:34]} 7. cxd4 {[%emt 0:00:19]} Rc8 {[%emt 0:01:17]} 8. Nc3 {[%emt 0:00:49]} g6 {[%emt 0:01:32]} 9. O-O {[%emt 0:06:39]} Bg7 {[%emt 0:01:37]} 10. h3 {[%emt 0:04:15]} O-O {[%emt 0:01:25]} 11. Rd1 {[%emt 0:02:23]} a6 {[%emt 0:04:31]} 12. a4 {[%emt 0:07:35]} e6 {[%emt 0:05:58]} 13. Bf4 {[%emt 0:04:31]} Qe7 {[%emt 0:05:17]} 14. Qb3 {[%emt 0:00:37]} Na5 {[%emt 0:01:27]} 15. Qb4 {[%emt 0:00:41]} Nc6 {[%emt 0:03:59]} 16. Bxd6 {[%emt 0:00:24]} Qd8 {[%emt 0:02:37]} 17. Qxb7 {[%emt 0:03:36]} Re8 {[%emt 0:02:01]} 18. Qxa6 {[%emt 0:02:14]} Ra8 {[%emt 0:03:06]} 19. Qd3 {[%emt 0:00:39]} Qa5 {[%emt 0:02:19]} 20. e5 {[%emt 0:01:50]} Nd5 {[%emt 0:00:36]} 21. Nxd5 {[%emt 0:00:36]} Qxd5 {[%emt 0:01:00]} 22. Ng5 {[%emt 0:01:09]} h6 {[%emt 0:02:37]} 23. Bf3 {[%emt 0:01:50]} Qa5 {[%emt 0:00:53]} 24. Ne4 {[%emt 0:00:15]} Rac8 {[%emt 0:01:37]} 25. Nc5 {[%emt 0:00:58]} Nb4 {[%emt 0:00:18]} 26. Qd2 {[%emt 0:00:31]} Bc6 {[%emt 0:52:45]} 27. Nd3 {[%emt 0:00:40]} Bxf3 {[%emt 0:00:00]} 28. Bxb4 {[%emt 0:00:22]} Qa8 {[%emt 0:00:00]} 29. gxf3 {[%emt 0:00:11]} Qxf3 {[%emt 0:00:00]} 30. Qe3 {[%emt 0:00:31]} Qf5 {[%emt 0:00:00]} 31. Kg2 {[%emt 0:01:17]} Kh7 {[%emt 0:00:00]} 32. Qf4 {[%emt 0:00:16]} Qh5 {[%emt 0:00:00]} 33. Qg4 {[%emt 0:00:15]} Qxg4+ {[%emt 0:00:00]} 34. hxg4 {[%emt 0:00:05]} g5 {[%emt 0:00:00]} 35. a5 {[%emt 0:00:14]} Kg6 {[%emt 0:00:00]} 36. a6 {[%emt 0:00:08]} f5 {[%emt 0:00:00]} 37. exf6 {[%emt 0:00:29]} Bxf6 {[%emt 0:00:00]} 38. Ne5+ {[%emt 0:00:07]} Bxe5 {[%emt 0:00:00]} 39. dxe5 {[%emt 0:00:06]} Rc4 {[%emt 0:00:00]} 40. a7 {[%emt 0:00:40]} Rxg4+ {[%emt 0:00:00]} 41. Kf1 {[%emt 0:00:09]} Ra8 {[%emt 0:00:00]} 42. Be7 {[%emt 0:00:05]} Rh4 {[%emt 0:00:00]} 43. b4 {[%emt 0:00:50]} Rh1+ {[%emt 0:00:00]} 44. Ke2 {[%emt 0:00:07]} Rh4 {[%emt 0:00:00]} 45. Rd8 {[%emt 0:00:18]} Rxa7 {[%emt 0:00:00]} 46. Rxa7 {[%emt 0:00:33]} Re4+ {[%emt 0:00:00]} 47. Kd3 {[%emt 0:00:13]} Rxe5 {[%emt 0:00:00]} 48. Ra5 {[%emt 0:00:34]} Re1 {[%emt 0:00:00]} 49. b5 {[%emt 0:00:02]} Rd1+ {[%emt 0:00:00]} 50. Kc2 {[%emt 0:00:05]} Rf1 {[%emt 0:00:00]} 51. b6 {[%emt 0:00:05]} Rxf2+ {[%emt 0:00:00]} 52. Rd2 {[%emt 0:00:04]} Rf4 {[%emt 0:00:00]} 53. b7 {[%emt 0:00:18]} Rc4+ {[%emt 0:00:00]} 54. Kb3 {[%emt 0:00:12]} Rb4+ {[%emt 0:00:00]} 55. Kxb4 {[%emt 0:00:12]} g4 {[%emt 0:00:00]} 56. b8=Q {[%emt 0:00:09]} e5 {[%emt 0:00:00]} 57. Rf2 {[%emt 0:00:12]} g3 {[%emt 0:00:00]} 58. Qg8+ {[%emt 0:00:10]} Kh5 {[%emt 0:00:00]} 59. Rxe5# {[%emt 0:00:13]} 1-0

[Event "FIDE WCCC Open-08 2024"]
[Site "Montesilvano"]
[Date "2024.11.20"]
[Round "6.8"]
[White "Bausys, Benas"]
[Black "Zhang, Yangming"]
[Result "1-0"]
[ECO "B33"]
[WhiteElo "1564"]
[BlackElo "1770"]
[Annotator "NA RC"]
[PlyCount "117"]
[EventDate "2024.11.18"]
[EventType "swiss"]
[EventCountry "ITA"]
[SourceTitle "playchess.com"]
[Source "ChessBase"]
[SourceQuality "1"]
[TimeControl "5400+30"]

1. e4 {[%emt 0:00:02]} c5 {[%emt 0:00:23]} 2. Nf3 {[%emt 0:00:10]} Nc6 {[%emt 0:00:56]} 3. d4 {[%emt 0:00:02]} cxd4 {[%emt 0:00:47]} 4. Nxd4 {[%emt 0:00:05]} Nf6 {[%emt 0:00:55]} 5. Nc3 {[%emt 0:00:05]} e5 {[%emt 0:00:47]} 6. Ndb5 {[%emt 0:00:05]} d6 {[%emt 0:00:20]} 7. Bg5 {[%emt 0:00:05]} a6 {[%emt 0:00:28]} 8. Bxf6 {[%emt 0:00:06]} gxf6 {[%emt 0:00:38]} 9. Na3 {[%emt 0:00:09]} b5 {[%emt 0:03:44]} 10. Nd5 {[%emt 0:00:24]} f5 {[%emt 0:00:14]} 11. g3 {[%emt 0:00:04]} Be6 {[%emt 0:02:13]} 12. exf5 {[%emt 0:00:43]} Bxf5 {[%emt 0:01:18]} 13. Bg2 {[%emt 0:00:08]} Rc8 {[%emt 0:00:59]} 14. c3 {[%emt 0:01:13]} Bg7 {[%emt 0:00:54]} 15. Nc2 {[%emt 0:00:36]} O-O {[%emt 0:01:14]} 16. Nce3 {[%emt 0:00:22]} Bg6 {[%emt 0:01:23]} 17. h4 {[%emt 0:00:21]} h6 {[%emt 0:04:28]} 18. g4 {[%emt 0:05:43]} b4 {[%emt 0:08:39]} 19. Rc1 {[%emt 0:05:38]} e4 {[%emt 0:02:24]} 20. cxb4 {[%emt 0:07:28]} Re8 {[%emt 0:05:24]} 21. Nc4 {[%emt 0:09:09]} Ne5 {[%emt 0:08:38]} 22. Nxe5 {[%emt 0:02:03]} Bxe5 {[%emt 0:03:52]} 23. b3 {[%emt 0:02:13]} e3 {[%emt 0:06:43]} 24. fxe3 {[%emt 0:02:01]} Bg3+ {[%emt 0:03:11]} 25. Ke2 {[%emt 0:04:33]} Kg7 {[%emt 0:01:49]} 26. Rxc8 {[%emt 0:08:55]} Qxc8 {[%emt 0:00:28]} 27. Qd4+ {[%emt 0:00:26]} Re5 {[%emt 0:04:57]} 28. Qc4 {[%emt 0:02:33]} Qe6 {[%emt 0:01:50]} 29. Qd4 {[%emt 0:02:58]} Qc8 {[%emt 0:07:49]} 30. Kf3 {[%emt 0:00:30]} Bxh4 {[%emt 0:00:30]} 31. Rxh4 {[%emt 0:00:30]} Be4+ {[%emt 0:00:30]} 32. Kg3 {[%emt 0:00:30]} Bxg2 {[%emt 0:00:30]} 33. Kxg2 {[%emt 0:00:30]} Qc6 {[%emt 0:00:30]} 34. Rh5 {[%emt 0:00:30]} Qc2+ {[%emt 0:00:30]} 35. Kg3 {[%emt 0:00:30]} Qe2 {[%emt 0:00:30]} 36. Rxe5 {[%emt 0:00:30]} Qe1+ {[%emt 0:00:30]} 37. Kf4 {[%emt 0:00:30]} Qf2+ {[%emt 0:00:30]} 38. Ke4 {[%emt 0:00:30]} Qc2+ {[%emt 0:00:30]} 39. Qd3 {[%emt 0:00:30]} Qg2+ {[%emt 0:00:30]} 40. Kf5 {[%emt 0:00:30]} Qf3+ {[%emt 0:00:30]} 41. Nf4 {[%emt 0:00:30]} dxe5 {[%emt 0:00:30]} 42. Qe4 {[%emt 0:00:30]} Qxe4+ {[%emt 0:00:30]} 43. Kxe4 {[%emt 0:00:30]} exf4 {[%emt 0:00:30]} 44. exf4 {[%emt 0:00:30]} Kf6 {[%emt 0:00:30]} 45. a4 {[%emt 0:00:30]} Ke6 {[%emt 0:00:30]} 46. b5 {[%emt 0:00:30]} axb5 {[%emt 0:00:30]} 47. axb5 {[%emt 0:00:30]} Kd6 {[%emt 0:00:30]} 48. Kf5 {[%emt 0:00:30]} Kc5 {[%emt 0:00:30]} 49. Kf6 {[%emt 0:00:30]} Kxb5 {[%emt 0:00:30]} 50. Kxf7 {[%emt 0:00:30]} Kb4 {[%emt 0:00:30]} 51. g5 {[%emt 0:00:30]} hxg5 {[%emt 0:00:30]} 52. fxg5 {[%emt 0:00:30]} Kxb3 {[%emt 0:00:30]} 53. g6 {[%emt 0:00:30]} Kc4 {[%emt 0:00:30]} 54. g7 {[%emt 0:00:30]} Kd5 {[%emt 0:00:30]} 55. g8=Q {[%emt 0:00:30]} Ke4 {[%emt 0:00:30]} 56. Qg4+ {[%emt 0:00:30]} Ke5 {[%emt 0:00:30]} 57. Ke7 {[%emt 0:00:30]} Kd5 {[%emt 0:00:30]} 58. Qe6+ {[%emt 0:00:30]} Kd4 {[%emt 0:00:30]} 59. Kd6 {[%emt 0:00:30]} 1-0

[Event "FIDE WCCC Open-08 2024"]
[Site "Montesilvano"]
[Date "2024.11.20"]
[Round "6.9"]
[White "Alloussi, Arian"]
[Black "Jia, Zining (Matthew)"]
[Result "0-1"]
[ECO "C00"]
[WhiteElo "1745"]
[BlackElo "1550"]
[Annotator "NA RC"]
[PlyCount "104"]
[EventDate "2024.11.18"]
[EventType "swiss"]
[EventCountry "ITA"]
[SourceTitle "playchess.com"]
[Source "ChessBase"]
[SourceQuality "1"]
[TimeControl "5400+30"]

1. e4 {[%emt 0:00:01]} e6 {[%emt 0:00:04]} 2. d3 {[%emt 0:00:08]} d5 {[%emt 0:00:04]} 3. Nd2 {[%emt 0:00:06]} Nf6 {[%emt 0:00:06]} 4. Ngf3 {[%emt 0:00:08]} b6 {[%emt 0:00:08]} 5. e5 {[%emt 0:00:50]} Nfd7 {[%emt 0:00:05]} 6. d4 {[%emt 0:00:34]} c5 {[%emt 0:00:08]} 7. c3 {[%emt 0:00:41]} Nc6 {[%emt 0:00:14]} 8. a3 {[%emt 0:05:18]} a6 {[%emt 0:02:18]} 9. Bd3 {[%emt 0:03:17]} b5 {[%emt 0:00:21]} 10. O-O {[%emt 0:01:45]} Bb7 {[%emt 0:00:38]} 11. Re1 {[%emt 0:04:10]} Qb6 {[%emt 0:01:21]} 12. dxc5 {[%emt 0:04:08]} Bxc5 {[%emt 0:00:25]} 13. Qe2 {[%emt 0:02:50]} Qc7 {[%emt 0:04:28]} 14. Nb3 {[%emt 0:02:56]} Ba7 {[%emt 0:00:18]} 15. Bf4 {[%emt 0:03:52]} Na5 {[%emt 0:00:59]} 16. Nxa5 {[%emt 0:04:12]} Qxa5 {[%emt 1:26:53]} 17. Rad1 {[%emt 0:02:52]} Qc7 {[%emt 0:00:00]} 18. Bg3 {[%emt 0:01:43]} Nc5 {[%emt 0:00:00]} 19. Bc2 {[%emt 0:01:40]} h6 {[%emt 0:00:00]} 20. Nd4 {[%emt 0:06:09]} Nd7 {[%emt 0:00:00]} 21. Bb3 {[%emt 0:01:56]} Nb6 {[%emt 0:00:00]} 22. Qg4 {[%emt 0:02:49]} g5 {[%emt 0:00:00]} 23. h3 {[%emt 0:08:16]} O-O-O {[%emt 0:00:00]} 24. Ra1 {[%emt 0:04:41]} Nc4 {[%emt 0:00:00]} 25. Qe2 {[%emt 0:03:55]} Na5 {[%emt 0:00:00]} 26. Bc2 {[%emt 0:03:54]} Nc4 {[%emt 0:00:00]} 27. Bd3 {[%emt 0:06:52]} Kb8 {[%emt 0:00:00]} 28. a4 {[%emt 0:02:39]} bxa4 {[%emt 0:00:00]} 29. Rxa4 {[%emt 0:00:45]} Rc8 {[%emt 0:00:00]} 30. Ra2 {[%emt 0:01:08]} h5 {[%emt 0:00:00]} 31. Rea1 {[%emt 0:01:55]} Bxd4 {[%emt 0:07:30]} 32. cxd4 {[%emt 0:00:32]} Qb6 {[%emt 0:00:00]} 33. Rb1 {[%emt 0:07:57]} Qb3 {[%emt 0:00:00]} 34. Rba1 {[%emt 0:01:27]} Qb6 {[%emt 0:00:00]} 35. Rb1 {[%emt 0:00:35]} Qb3 {[%emt 0:00:00]} 36. Rba1 {[%emt 0:00:28]} h4 {[%emt 0:00:00]} 37. Bh2 {[%emt 0:00:54]} Rc6 {[%emt 0:00:00]} 38. Bc2 {[%emt 0:01:16]} Qb4 {[%emt 0:00:00]} 39. Bd3 {[%emt 0:05:24]} Rhc8 {[%emt 0:00:00]} 40. Ra4 {[%emt 0:01:33]} Qb6 {[%emt 0:00:00]} 41. g3 {[%emt 0:01:13]} Nxb2 {[%emt 0:00:00]} 42. Rb1 {[%emt 0:02:50]} Rc1+ {[%emt 0:00:00]} 43. Kg2 {[%emt 0:00:47]} Rxb1 {[%emt 0:00:00]} 44. Bxb1 {[%emt 0:00:23]} Nxa4 {[%emt 0:00:00]} 45. Qd3 {[%emt 0:00:25]} Rc3 {[%emt 0:00:00]} 46. Qh7 {[%emt 0:00:11]} Qxd4 {[%emt 0:00:00]} 47. Qg8+ {[%emt 0:00:36]} Ka7 {[%emt 0:00:00]} 48. Qxg5 {[%emt 0:00:15]} Qd1 {[%emt 0:00:00]} 49. Qe7 {[%emt 0:00:43]} d4+ {[%emt 0:00:00]} 50. Be4 {[%emt 0:00:13]} Nc5 {[%emt 0:00:00]} 51. Bc6 {[%emt 0:00:25]} Rc1 {[%emt 0:10:00]} 52. Qxf7 {[%emt 0:00:58]} Qh1# {[%emt 0:00:30]} 0-1

[Event "FIDE WCCC Open-08 2024"]
[Site "Montesilvano"]
[Date "2024.11.20"]
[Round "6.10"]
[White "Stankowski, Wiktor"]
[Black "Hu, Junyan"]
[Result "1-0"]
[ECO "B45"]
[WhiteElo "1617"]
[BlackElo "1924"]
[Annotator "NA RC"]
[PlyCount "113"]
[EventDate "2024.11.18"]
[EventType "swiss"]
[EventCountry "ITA"]
[SourceTitle "playchess.com"]
[Source "ChessBase"]
[SourceQuality "1"]
[TimeControl "5400+30"]

1. e4 {[%emt 0:00:03]} c5 {[%emt 0:00:02]} 2. Nf3 {[%emt 0:00:28]} e6 {[%emt 0:00:02]} 3. d4 {[%emt 0:00:56]} cxd4 {[%emt 0:00:05]} 4. Nxd4 {[%emt 0:00:35]} Nf6 {[%emt 0:00:05]} 5. Nc3 {[%emt 0:00:44]} Nc6 {[%emt 0:00:03]} 6. Ndb5 {[%emt 0:01:15]} Bc5 {[%emt 0:00:06]} 7. Bf4 {[%emt 0:01:05]} O-O {[%emt 0:00:32]} 8. Bc7 {[%emt 0:02:08]} Qe7 {[%emt 0:00:04]} 9. Bd6 {[%emt 0:01:37]} Bxd6 {[%emt 0:00:08]} 10. Qxd6 {[%emt 0:01:51]} Qd8 {[%emt 0:00:09]} 11. O-O-O {[%emt 0:08:33]} a6 {[%emt 0:00:02]} 12. Nd4 {[%emt 0:05:51]} Ne7 {[%emt 0:00:17]} 13. h4 {[%emt 0:11:31]} b5 {[%emt 0:00:48]} 14. f3 {[%emt 0:05:51]} Ne8 {[%emt 0:00:55]} 15. Qh2 {[%emt 0:04:14]} b4 {[%emt 0:00:05]} 16. Nce2 {[%emt 0:07:16]} a5 {[%emt 0:01:37]} 17. g4 {[%emt 0:06:33]} a4 {[%emt 0:00:46]} 18. Kd2 {[%emt 0:12:22]} d5 {[%emt 0:01:47]} 19. e5 {[%emt 0:04:53]} Qb6 {[%emt 0:04:11]} 20. h5 {[%emt 0:03:31]} Ba6 {[%emt 0:01:15]} 21. Ke1 {[%emt 0:04:48]} Rc8 {[%emt 0:02:24]} 22. g5 {[%emt 0:01:52]} Nc7 {[%emt 0:06:58]} 23. Qf4 {[%emt 0:05:32]} Bxe2 {[%emt 0:07:35]} 24. Bxe2 {[%emt 0:01:01]} Nc6 {[%emt 0:01:21]} 25. Nxc6 {[%emt 0:02:10]} Qxc6 {[%emt 0:01:05]} 26. h6 {[%emt 0:00:00]} g6 {[%emt 0:01:00]} 27. Qxb4 {[%emt 0:01:59]} Rb8 {[%emt 0:02:10]} 28. Qc3 {[%emt 0:00:43]} Qb6 {[%emt 0:07:55]} 29. b3 {[%emt 0:01:24]} axb3 {[%emt 0:01:19]} 30. axb3 {[%emt 0:00:19]} Rfc8 {[%emt 0:03:56]} 31. Qd4 {[%emt 0:00:47]} Qc6 {[%emt 0:01:13]} 32. Rd2 {[%emt 0:01:02]} Rb6 {[%emt 0:04:30]} 33. Kf2 {[%emt 0:01:20]} Rcb8 {[%emt 0:01:34]} 34. Ra1 {[%emt 0:00:46]} Rb4 {[%emt 0:00:05]} 35. Qe3 {[%emt 0:01:18]} Rd8 {[%emt 0:02:20]} 36. f4 {[%emt 0:00:29]} Re4 {[%emt 0:00:41]} 37. Qxe4 {[%emt 0:00:18]} dxe4 {[%emt 0:02:08]} 38. Rxd8+ {[%emt 0:00:08]} Ne8 {[%emt 0:00:03]} 39. Raa8 {[%emt 0:00:06]} e3+ {[%emt 0:01:47]} 40. Kg3 {[%emt 0:00:08]} Kf8 {[%emt 0:01:00]} 41. Rxe8+ {[%emt 0:00:02]} Qxe8 {[%emt 0:00:02]} 42. Rxe8+ {[%emt 0:00:22]} Kxe8 {[%emt 0:00:04]} 43. Kf3 {[%emt 0:00:13]} Kd7 {[%emt 0:00:03]} 44. Kxe3 {[%emt 0:00:15]} f5 {[%emt 0:00:18]} 45. exf6 {[%emt 0:00:12]} Ke8 {[%emt 0:00:01]} 46. b4 {[%emt 0:00:21]} Kf7 {[%emt 0:00:05]} 47. b5 {[%emt 0:00:07]} e5 {[%emt 0:00:10]} 48. b6 {[%emt 0:00:12]} exf4+ {[%emt 0:00:03]} 49. Kxf4 {[%emt 0:00:10]} Kg8 {[%emt 0:00:10]} 50. b7 {[%emt 0:00:14]} Kf7 {[%emt 0:00:02]} 51. Bc4+ {[%emt 0:00:18]} Ke8 {[%emt 0:00:06]} 52. b8=Q+ {[%emt 0:00:11]} Kd7 {[%emt 0:00:01]} 53. Qb6 {[%emt 0:00:36]} Ke8 {[%emt 0:00:13]} 54. Qe6+ {[%emt 0:00:16]} Kd8 {[%emt 0:00:04]} 55. Qe7+ {[%emt 0:00:10]} Kc8 {[%emt 0:00:05]} 56. Ba6+ {[%emt 0:00:09]} Kb8 {[%emt 0:00:04]} 57. Qb7# {[%emt 0:00:41]} 1-0